Workbook

Sheet Menu
A1: Ceci est une calculatrice d'aide aux décisions d'affaire à la ferme qui comporte 3 feuilles de travail. Certains champs doivent être remplis par l'utilisateur. Elle peut avoir 24 colonnes de largeur et 55 rangées.
A2: Menu - Calculatrice des coûts des machines agricoles
A11: La calculatrice des coûts des machines agricoles comprend une calculatrice des coûts, des tableaux des coûts,
A12: et une fiche technique sur le calcul des coûts des machines agricoles.
A14: par John Molenhuis
A15: chargé de programme, analyse des activités commerciales et des coûts de production
A16: MAAAO, Brighton
A17: Courriel: john.molenhuis@ontario.ca
A19: Révisé le june 2025
A20: fin de la feuille de calcul

Sheet Calculatrice
B2: Calculateur des tarifs des travaux agricoles à forfait
B3: Les nombres et le texte en bleu dans les cellules dont l’arrière-plan est jaune peuvent être modifiés pour chaque producteur.
B4: PARAMÈTRES GÉNÉRAUX
B5: Taux d'intérêt*** | C5: 0.05 | D5: Coût du carburant/litre | E5: 1.35
B6: Tarif assurance et remisage (% du prix d'achat) | C6: 0.01 | D6: Consommation de carburant - litres/CV-h du moteur | E6: 0.192 | AB6: Tracteurs 2RM | AC6: 2WD tractors | AF6: 2WD tractors
D7: Rémunération de conducteur (entrepreneur ou salarié) | E7: 27 | AB7: Tracteurs avec assistance roues avant | AC7: FWA tractors | AF7: FWA tractors
D8: Allocation de travail pour le déplacement des machines et temps morts | E8: 0.15 | AB8: Tracteurs 4RM | AC8: 4WD tractors | AF8: 4WD tractors
B9: UNITÉ MOTRICE (TRACTEUR OU MACHINE AUTOMOTRICE) | AB9: Tracteurs à chenilles | AC9: Self Propelled combines | AF9: Self Propelled combines
B10: Puissance nominale du moteur en CV | C10: 375 | D10: Moissonneuses-batteuses automotrices | AB10: Moissonneuses-batteuses automotrices | AC10: Self propelled high clearance sprayer | AF10: Self propelled high clearance sprayer
B11: Vie utile (années) | C11: =IF(D10<>"",VLOOKUP(D10,DeprRep,3,FALSE),0) -> 12 | D11: Prix d'achat | E11: 740000 | AB11: Andainage automotrices | AC11: Self propelled forage harvesters | AF11: Self propelled forage harvesters
B12: Acres par année | C12: =C15*E12 -> 2550 | D12: Heures par année | E12: =IF(D10<>"",VLOOKUP(D10,DeprRep,2,FALSE),0) -> 250 | AB12: Récolteuses-hacheuses automotrices | AC12: Depreciation
D13: Consommation moyenne de carburant (L/h) | E13: =C10*E6 -> 72 | AB13: Récolteuses-hacheuses automotrices - Têtes | AC13: Trade in value
AB14: Faucheuse-conditionneuse automotrices | AC14: Repairs | AD14: 3.3
B15: Taux de travail: acres/heure (voir tableau 5) | C15: =C16*C17*(C18*100)/825 -> 10.2 | D15: Taux d’amortissement annuel (% du prix d’achat) Tableau 3 | E15: =IF(D10<>"",VLOOKUP(D10,DeprRep,4,FALSE),0) -> 5.6 | AB15: Transporteur automoteur de petites balles carrées
B16: Vitesse moyenne (miles par heure) | C16: 3.3 | D16: Pourcentage à allouer pour les réparations annuelles (% du prix d’achat) Tableau 3 | E16: =IF(D10<>"",VLOOKUP(D10,DeprRep,5,FALSE),0) -> 2.63 | AB16: Pulvérisateurs enjambeurs automoteurs
B17: Largeur du matériel (pieds) | C17: 30
B18: Efficacité du champ (%) | C18: 0.85 | D18: Valeur de reprise** | E18: =IF(E15=0,0,E11-(E11*E15/100*C11)) -> 242720
B20: Coûts fixes annuels | E20: Totaux annuel $ | F20: $/heure | G20: $/acre | AB20: Charrue à 4 socs 18 pouces | AC20: Têtes à rigide
B21: Recouvrement des investissements* | AB21: Charrue à 6 socs 18 pouces | AC21: Têtes à ramasseur
B22: prix d’achat – valeur de reprise | D22: =E11-E18 -> 497280 | AB22: Charrue à 8 socs 18 pouces | AC22: Têtes à flexible
B23: facteur lié au recouvrement des investissements Tableau 4 | C23: x | D23: =IFERROR((C5*(1+C5)^C11)/((1+C5)^C11-1),0) -> 0.11282541 | AB23: Cultivateur de 24 pieds | AC23: Têtes à tapis
D24: =D22*D23 -> 56105.8199 | AB24: Cultivateur de 31 pieds | AC24: Têtes à maïs
B25: valeur de reprise x taux d’intérêt** | C25: + | D25: =E18*C5 -> 12136 | AB25: Cultivateur de 44 pieds | AC25: Andainage automotrices
B26: Recouvrement des investissements* | E26: =D24+D25 -> 68241.8199 | F26: =IFERROR(E26/$E$12,0) -> 272.9672796 | G26: =IFERROR(F26/$C$15,0) -> 26.761498 | AB26: Charrue chisel de 16 pieds | AC26: Remorques à grain
AB27: Charrue chisel de 21 pieds | AC27: Tarières - (puissance)
B28: Assurance et remisage | D28: ="purchase price x "&$C$6*100&" %" -> purchase price x 1 % | E28: =E11*C6 -> 7400 | F28: =IFERROR(E28/$E$12,0) -> 29.6 | G28: =IFERROR(F28/$C$15,0) -> 2.901960784 | AB28: Pulvériseur tandem de 24 pieds | AC28: Tarières - (prise de force)
B29: Coûts fixes totaux | E29: =SUM(E26:E28) -> 75641.8199 | F29: 302.5672796 | G29: 29.66345878 | H29: (A) | AB29: Pulvériseur tandem de 30 pieds | AC29: Aspirateur à grains
AB30: Pulvériseur déporté de 10 pieds | AC30: Faucheuse-conditionneuse (faucille) traîné
B31: Coûts d’utilisation annuels | AB31: Pulvériseur déporté de 16 pieds | AC31: Faucheuse-conditionneuse (disque) traîné
B32: Carburant et lubrifiants (Tableau 5) | D32: (litres/hour x hours/year x fuel cost/litre) | E32: =E13*E12*E5 -> 24300 | F32: =IFERROR(E32/$E$12,0) -> 97.2 | G32: =IFERROR(F32/$C$15,0) -> 9.529411765 | AB32: Machine de labour vertical de 21 pieds | AC32: Râteau à foin (roue)
B33: Réparations | D33: annual repair rate x purchase price | E33: =E11*E16/100 -> 19462 | F33: 77.848 | G33: 7.632156863 | AB33: Machine de labour vertical de 30 pieds | AC33: Presses à balles rondes
B34: Coûts d’utilisation totaux | E34: =SUM(E32:E33) -> 43762 | F34: 175.048 | G34: 17.16156863 | H34: (B) | AB34: Machine de labour vertical de 43 pieds | AC34: Presses à grosses balles carrées
B35: Totaux | E35: =SUM(E34,E29) -> 119403.8199 | F35: 477.6152796 | G35: 46.82502741 | AB35: Machine de labour en bandes à 12 rangs | AC35: Presses à petites balles carrées
B36: + MATÉRIEL 1 (INSTRUMENT ARATOIRE, MACHINE MUE PAR | D36: Têtes à maïs | AB36: Semoir en ligne à 6 rangs de 30 pouces | AC36: Transporteur de balles rondes - traîné
B37: PRISE DE FORCE, AUTRE) | D37: Moissonneuse-batteuse à maïs, 12 becs cueilleurs–30 po | AB37: Semoir en ligne à 12 rangs de 30 pouces | AC37: Transporteur de grosses balles carrées - traîné
B38: Vie utile (années) | C38: =IF(D36<>"",VLOOKUP(D36,DeprRep,3,FALSE),0) -> 15 | D38: Prix d'achat | E38: 170000 | AB38: Semoir en ligne à 16 rangs de 30 pouces | AC38: Foreuse pneumatique (ouvreurs indépendants)
B39: Acres par année | C39: =E39*C15 -> 1020 | D39: Heures par année | E39: =IF(D36<>"",VLOOKUP(D36,DeprRep,2,FALSE),0) -> 100 | AB39: Semoir-distributeur à 6 rangs de 30 pouces | AC39: Foreuse pneumatique (houe)
AB40: Semoir-distributeur à 12 rangs de 30 pouces | AC40: Foreuse pneumatique (disque)
B41: Valeur de reprise** | C41: =IF(E41="","",E38-(E38*E41/100*C38)) -> 57800 | D41: Taux d’amortissement annuel (% du prix d’achat) Tableau 3 | E41: =IF(D36<>"",VLOOKUP(D36,DeprRep,4,FALSE),0) -> 4.4 | AB41: Semoir-distributeur à 16 rangs de 30 pouces | AC41: Semoir pneumatique
D42: Pourcentage à allouer pour les réparations annuelles (% du prix d’achat) Tableau 3 | E42: =IF(D36<>"",VLOOKUP(D36,DeprRep,5,FALSE),0) -> 2.94 | AB42: Semoir à céréales de 25 pieds | AC42: Semoir pour cultures en rangs
B43: Coûts fixes annuels | E43: Totaux annuel $ | F43: $/heure | G43: $/acre | AB43: Semoir à céréales de 35 pieds | AC43: Charrues
B44: Recouvrement des investissements* | AB44: Semoir à roues plombeuses, 12 pieds | AC44: Disques
B45: prix d’achat – valeur de reprise | D45: =E38-C41 -> 112200 | AB45: Semoir à roues plombeuses, 20 pieds | AC45: Cultivateurs
B46: facteur lié au recouvrement des investissements Tableau 4 | C46: x | D46: =IFERROR((C5*(1+C5)^C38)/((1+C5)^C38-1),0) -> 0.09634228761 | AB46: Semoir (semis direct), 15 pieds | AC46: Herses standards
D47: =D45*D46 -> 10809.60467 | AB47: Semoir (semis direct), 20 pieds | AC47: Herses lourdes
B48: valeur de reprise x taux d’intérêt** | C48: + | D48: =(C41*C5) -> 2890 | AB48: Pulvérisateur de 90 pieds, tracté | AC48: Herses de tasseurs | AM48: per hour | AN48: implement1 | AO48: implement2 | AQ48: power + return+operator
B49: Recouvrement des investissements* | E49: =D47+D48 -> 13699.60467 | F49: =IFERROR(E49/$E$39,0) -> 136.9960467 | G49: =IFERROR(F49/($C$15),0) -> 13.43098497 | AB49: Pulvérisateur de 90 pieds, automoteur | AC49: Machines de labour vertical | AM49: trade in | AN49: =E38-C41 -> 112200 | AO49: =E60-C63 -> 0 | AP49: =SUM(AN49:AO49) -> 112200
AB50: Faucheuse-conditionneuse de 9 pieds | AC50: Rouleau | AM50: cap recovery rate | AN50: =D68 -> 0
B51: Assurance et remisage | D51: ="prix d’achat x "&$C$6*100&" %" -> prix d’achat x 1 % | E51: =E38*C6 -> 1700 | F51: =IFERROR(E51/$E$39,0) -> 17 | G51: =IFERROR(F51/($C$15),0) -> 1.666666667 | AB51: Faucheuse-conditionneuse rotative de 13 pieds | AC51: Décapeuses | AN51: =AN49*AN50 -> 0 | AO51: =AO49*AN50 -> 0 | AP51: =SUM(AN51:AO51) -> 0
B52: Coûts fixes totaux | E52: =SUM(E45:E51) -> 15399.60467 | F52: 153.9960467 | G52: =IFERROR(F52/($C$15),0) -> 15.09765164 | H52: (C) | AB52: Presse à balles carrées | AC52: Enfonce-pieux | AM52: interest | AN52: =C41*C39 -> 58956000 | AO52: =C63*C61 -> 0
AB53: Presse à balles rondes de 1000 lb | AC53: Mélangeur d'aliments vertical | AN53: =SUM(AN51:AN52) -> 58956000 | AO53: =SUM(AO51:AO52) -> 0 | AP53: =SUM(AN53:AO53) -> 58956000
B54: Coûts d’utilisation annuels | AB54: Presse à balles rondes de 1500 lb | AC54: Mélangeur-broyeur et mélangeur d'aliments | AM54: insurance | AN54: =E38*0.01 -> 1700 | AO54: =E60*0.01 -> 0 | AP54: =SUM(AN54:AO54) -> 1700
B55: Réparations | D55: pourcentage à allouer pour les réparations annuelles x prix d’achat | E55: =(E38*E42/100) -> 4998 | F55: =IFERROR(E55/$E$39,0) -> 49.98 | G55: =IFERROR(F55/($C$15),0) -> 4.9 | AB55: Presse à grosses balles carrées | AC55: Broyeur de balles | AM55: repairs | AN55: =E38*E42/100 -> 4998 | AO55: =E60*E64/100 -> 0 | AP55: =SUM(AN55:AO55) -> 4998
B56: Coûts d’utilisation totaux | E56: =SUM(E54:E55) -> 4998 | F56: 49.98 | G56: =IFERROR(F56/($C$15),0) -> 4.9 | H56: (D) | AB56: Presse à balles rondes de 1000 lb/enrubanneuse | AC56: Épandeurs de fumier | AM56: Total | AN56: =SUM(AN53,AN54,AN55) -> 58962698 | AO56: =SUM(AO53,AO54,AO55) -> 0 | AP56: =SUM(AN56:AO56) -> 58962698 | AQ56: =E35+(E35*C81)+E85 -> 145076.8929 | AR56: =SUM(AP56:AQ56,AN57:AO57) -> 67952179.59
B57: Coûts totaux | E57: =SUM(E56,E52) -> 20397.60467 | F57: =SUM(F56,F52) -> 203.9760467 | G57: 19.99765164 | AB57: Récolteuse-hacheuse à 2 rangs | AM57: profit | AN57: =AN56*C81 -> 8844404.7 | AO57: =AO56*C81 -> 0
B58: + MATÉRIEL 2 (INSTRUMENT ARATOIRE, MACHINE MUE PAR | AB58: Récolteuse-hacheuse automotrice à 6 rangs de 15 pieds | AM58: per hour | AN58: =IFERROR(AN56/E39,"") -> 589626.98 | AO58: =IFERROR(AO56/E61,"") ->  | AQ58: =IFERROR(AQ56/E12,"") -> 580.3075715 | AR58: =SUM(AN58:AQ58) -> 590207.2876
B59: PRISE DE FORCE, AUTRE) | AB59: Grosse souffleuse à fourrage
B60: Vie utile (années) | C60: =IF(D58<>"",VLOOKUP(D58,DeprRep,3,FALSE),0) -> 0 | D60: Prix d'achat | AB60: Moissonneuse-batteuse à maïs, 6 becs cueilleurs–30 po | AM60: ST rental | AN60: implement1 | AO60: implement2 | AQ60: power
B61: Acres par année | C61: =E61*C15 -> 0 | D61: Heures par année | E61: =IF(D58<>"",VLOOKUP(D58,DeprRep,2,FALSE),0) -> 0 | AB61: Moissonneuse-batteuse à maïs, 12 becs cueilleurs–30 po | AM61: machine costs | AN61: =AN56 -> 58962698 | AO61: =AO56 -> 0 | AQ61: =E35-E32 -> 95103.8199 | AR61: =SUM(AN61:AQ61) -> 59057801.82
AB62: Moissonneuse-batteuse à céréales, 25 pieds | AM62: profit
B63: Valeur de reprise** | C63: =IF(E63="","",E60-(E60*E63/100*C60)) -> 0 | D63: Taux d’amortissement annuel (% du prix d’achat) Tableau 3 | E63: =IF(D58<>"",VLOOKUP(D58,DeprRep,4,FALSE),0) -> 0 | AB63: Moissonneuse-batteuse à céréales, 35 pieds | AM63: total
D64: Pourcentage à allouer pour les réparations annuelles (% du prix d’achat) Tableau 3 | E64: =IF(D58<>"",VLOOKUP(D58,DeprRep,5,FALSE),0) -> 0 | AM64: per hour
B65: Coûts fixes annuels | E65: Totaux annuel $ | F65: $/heure | G65: $/acre
B66: Recouvrement des investissements*
B67: prix d’achat – valeur de reprise | D67: =(E60-C63) -> 0
B68: facteur lié au recouvrement des investissements Tableau 4 | C68: x | D68: =IFERROR((C5*(1+C5)^C60)/((1+C5)^C60-1),0) -> 0
D69: =IFERROR(D67*D68,0) -> 0
B70: valeur de reprise x taux d’intérêt** | C70: + | D70: =(C63*C5) -> 0
B71: Recouvrement des investissements* | E71: =D69+D70 -> 0 | F71: =IFERROR(E71/$E$61,0) -> 0 | G71: =IFERROR(E71/($E$61*$C$15),0) -> 0
B73: Assurance et remisage | D73: ="prix d’achat x "&$C$6*100&" %" -> prix d’achat x 1 % | E73: =E60*C6 -> 0 | F73: =IFERROR(E73/$E$61,0) -> 0 | G73: =IFERROR(E73/($E$61*$C$15),0) -> 0
B74: Coûts fixes totaux | E74: =SUM(E67:E73) -> 0 | F74: 0 | G74: =IFERROR(E74/($E$61*$C$15),0) -> 0 | H74: (C)
B76: Coûts d’utilisation annuels
B77: Réparations | D77: pourcentage à allouer pour les réparations annuelles x prix d’achat | E77: =(E60*E64/100) -> 0 | F77: =IFERROR(E77/$E$61,0) -> 0 | G77: =IFERROR(E77/($E$61*$C$15),0) -> 0
B78: Coûts d’utilisation totaux | E78: =SUM(E76:E77) -> 0 | F78: 0 | G78: =IFERROR(E78/($E$61*$C$15),0) -> 0 | H78: (D)
B79: Coûts totaux | E79: =SUM(E78,E74) -> 0 | F79: 0 | G79: =IFERROR(E79/($E$61*$C$15),0) -> 0
B80: = COÛTS ANNUELS DU MATÉRIEL (A + B + C + D) | E80: =SUM(E79,E35,E57) -> 139801.4246 | F80: =F79+F57+F35 -> 681.5913263 | G80: =G79+G57+G35 -> 66.82267905 | H80: (E)
B81: Rémunération de la gestion, frais d'administration | C81: =E8 -> 0.15 | D81: Rémunération de conducteur (entrepreneur ou salarié) | E81: =E7 -> 27
D82: Allocation de travail pour le déplacement des machines et temps morts | E82: 0.15
E83: Totaux annuel $ | F83: $/heure | G83: $/acre
B84: + Marge bénéficiaire (rémunération de la gestion, frais d'administration) | E84: =E80*C81 -> 20970.21368 | F84: =E84/E12 -> 83.88085474 | G84: =IFERROR(E84/C12,0) -> 8.22361321 | H84: (F)
B85: + Rémunération du conducteur (entrepreneur ou salarié) | E85: =E12*E81*(1+E82) -> 7762.5 | F85: =E85/E12 -> 31.05 | G85: =IFERROR(E85/C12,0) -> 3.044117647 | H85: (G)
B86: = Coûts totaux (E+F+G) | E86: =E80+E84+E85 -> 168534.1382 | H86: (H)
B87: = Coûts totaux des machines | D87: $/heure | F87: =F79+F57+F35+F84+F85 -> 796.522181
D88: $/acre | G88: =IFERROR(G79+G57+G35+G84+G85,0) -> 78.0904099
B89: * La méthode de recouvrement des investissements estime les coûts annuels d’amortissement et d’intérêt. Elle regroupe
B90: tous ces coûts en un seul calcul. Pour calculer les coûts de recouvrement des investissements, le facteur lié au
B91: recouvrement des investissements est multiplié par la dépréciation totale et l’on ajoute à ce résultat la valeur de reprise
B92: multipliée par le taux d’intérêt. Le tableau 5 présente les facteurs liés au recouvrement des investissements pour des
B93: combinaisons choisies d’années et de taux d’intérêt.
B94: ** Valeur de reprise = prix d’achat – (prix d’achat x taux d’amortissement annuel [voir le tableau 3] x nombre d’années depropriété).
B95: *** Intérêt : L’intérêt annuel moyen qu’aurait rapporté le placement de l’argent (le vôtre et/ou celui du prêteur) qui est immobilisé dans la machine.
B97: fin de la feuille de calcul

Sheet Tableaux
B1: Tableaux 4 et 5 voir la droite
B3: Tableau 3, Heures d’utilisation annuelles, vie utile optimale, amortissement et pourcentage à allouer pour les réparations | H3: Tableau 4. Facteurs liés au recouvrement des investissements | X3: TABLEAU 5. Besoins relatifs au rendement, à la puissance motrice et au carburant pour certaines machines agricoles
B4: Machine | C4: Utilisation annuelle (heures) | D4: Vie utile optimale (années) | E4: Taux d’amortissement annuel (% du prix d’achat) | F4: Pourcentage à allouer pour les réparations annuelles (% du prix d’achat) | I4: Taux d’intérêt | Y4: Puissance nominale du moteur en CV(1,2) | Z4: Acres/heure(2) | AA4: Litres/acre | AB4: Litres/heure(3)
B5: Tracteurs 2RM | C5: 300 | D5: 20 | E5: 3.3 | F5: 2.31 | H5: Année | I5: 0.02 | J5: 0.03 | K5: 0.04 | L5: 0.05 | M5: 0.06 | N5: 0.07 | O5: 0.08 | P5: 0.09 | Q5: 0.1 | R5: 0.11 | S5: 0.12 | T5: 0.13 | U5: 0.14 | V5: 0.15 | X5: Charrue à 4 socs 18 pouces | Y5: 85 | Z5: 2.8 | AA5: 5.828571429 | AB5: 16.32
B6: Tracteurs avec assistance roues avant | C6: 450 | D6: 15 | E6: 4.4 | F6: 2.73 | H6: 1 | I6: 1.02 | J6: 1.03 | K6: 1.04 | L6: 1.05 | M6: 1.06 | N6: 1.07 | O6: 1.08 | P6: 1.09 | Q6: 1.1 | R6: 1.11 | S6: 1.12 | T6: 1.13 | U6: 1.14 | V6: 1.15 | X6: Charrue à 6 socs 18 pouces | Y6: 160 | Z6: 3 | AA6: 10.24 | AB6: 30.72
B7: Tracteurs 4RM | C7: 450 | D7: 15 | E7: 4.4 | F7: 2.63 | H7: 2 | I7: 0.515 | J7: 0.523 | K7: 0.53 | L7: 0.538 | M7: 0.545 | N7: 0.553 | O7: 0.561 | P7: 0.568 | Q7: 0.576 | R7: 0.584 | S7: 0.592 | T7: 0.599 | U7: 0.607 | V7: 0.615 | X7: Charrue à 8 socs 18 pouces | Y7: 285 | Z7: 5.6 | AA7: 9.771428571 | AB7: 54.72
B8: Tracteurs à chenilles | C8: 450 | D8: 15 | E8: 4.4 | F8: 3.36 | H8: 3 | I8: 0.347 | J8: 0.354 | K8: 0.36 | L8: 0.367 | M8: 0.374 | N8: 0.381 | O8: 0.388 | P8: 0.395 | Q8: 0.402 | R8: 0.409 | S8: 0.416 | T8: 0.424 | U8: 0.431 | V8: 0.438 | X8: Cultivateur de 24 pieds | Y8: 160 | Z8: 9 | AA8: 3.413333333 | AB8: 30.72
B9: Moissonneuses-batteuses automotrices | C9: 250 | D9: 12 | E9: 5.6 | F9: 2.63 | H9: 4 | I9: 0.263 | J9: 0.269 | K9: 0.275 | L9: 0.282 | M9: 0.289 | N9: 0.295 | O9: 0.302 | P9: 0.309 | Q9: 0.315 | R9: 0.322 | S9: 0.329 | T9: 0.336 | U9: 0.343 | V9: 0.35 | X9: Cultivateur de 31 pieds | Y9: 255 | Z9: 20.6 | AA9: 2.376699029 | AB9: 48.96
B10: Têtes à rigide | C10: 250 | D10: 20 | E10: 3.3 | F10: 2.1 | H10: 5 | I10: 0.212 | J10: 0.218 | K10: 0.225 | L10: 0.231 | M10: 0.237 | N10: 0.244 | O10: 0.25 | P10: 0.257 | Q10: 0.264 | R10: 0.271 | S10: 0.277 | T10: 0.284 | U10: 0.291 | V10: 0.298 | X10: Cultivateur de 44 pieds | Y10: 305 | Z10: 29.1 | AA10: 2.012371134 | AB10: 58.56
B11: Têtes à ramasseur | C11: 250 | D11: 20 | E11: 3.3 | F11: 1.58 | H11: 6 | I11: 0.179 | J11: 0.185 | K11: 0.191 | L11: 0.197 | M11: 0.203 | N11: 0.21 | O11: 0.216 | P11: 0.223 | Q11: 0.23 | R11: 0.236 | S11: 0.243 | T11: 0.25 | U11: 0.257 | V11: 0.264 | X11: Charrue chisel de 16 pieds | Y11: 175 | Z11: 9 | AA11: 3.733333333 | AB11: 33.6
B12: Têtes à flexible | C12: 250 | D12: 15 | E12: 4.4 | F12: 2.63 | H12: 7 | I12: 0.155 | J12: 0.161 | K12: 0.167 | L12: 0.173 | M12: 0.179 | N12: 0.186 | O12: 0.192 | P12: 0.199 | Q12: 0.205 | R12: 0.212 | S12: 0.219 | T12: 0.226 | U12: 0.233 | V12: 0.24 | X12: Charrue chisel de 21 pieds | Y12: 275 | Z12: 12.6 | AA12: 4.19047619 | AB12: 52.8
B13: Têtes à tapis | C13: 250 | D13: 15 | E13: 4.4 | F13: 2.94 | H13: 8 | I13: 0.137 | J13: 0.142 | K13: 0.149 | L13: 0.155 | M13: 0.161 | N13: 0.167 | O13: 0.174 | P13: 0.181 | Q13: 0.187 | R13: 0.194 | S13: 0.201 | T13: 0.208 | U13: 0.216 | V13: 0.223 | X13: Pulvériseur tandem de 24 pieds | Y13: 170 | Z13: 15.1 | AA13: 2.161589404 | AB13: 32.64
B14: Têtes à maïs | C14: 100 | D14: 15 | E14: 4.4 | F14: 2.94 | H14: 9 | I14: 0.123 | J14: 0.128 | K14: 0.134 | L14: 0.141 | M14: 0.147 | N14: 0.153 | O14: 0.16 | P14: 0.167 | Q14: 0.174 | R14: 0.181 | S14: 0.188 | T14: 0.195 | U14: 0.202 | V14: 0.21 | X14: Pulvériseur tandem de 30 pieds | Y14: 255 | Z14: 15.3 | AA14: 3.2 | AB14: 48.96
B15: Andainage automotrices | C15: 200 | D15: 15 | E15: 4.4 | F15: 2.1 | H15: 10 | I15: 0.111 | J15: 0.117 | K15: 0.123 | L15: 0.13 | M15: 0.136 | N15: 0.142 | O15: 0.149 | P15: 0.156 | Q15: 0.163 | R15: 0.17 | S15: 0.177 | T15: 0.184 | U15: 0.192 | V15: 0.199 | X15: Pulvériseur déporté de 10 pieds | Y15: 125 | Z15: 6 | AA15: 4 | AB15: 24
B16: Remorques à grain | C16: 250 | D16: 20 | E16: 3.3 | F16: 2.1 | H16: 11 | I16: 0.102 | J16: 0.108 | K16: 0.114 | L16: 0.12 | M16: 0.127 | N16: 0.133 | O16: 0.14 | P16: 0.147 | Q16: 0.154 | R16: 0.161 | S16: 0.168 | T16: 0.176 | U16: 0.183 | V16: 0.191 | X16: Pulvériseur déporté de 16 pieds | Y16: 175 | Z16: 9.6 | AA16: 3.5 | AB16: 33.6
B17: Tarières - (puissance) | C17: 100 | D17: 20 | E17: 3.3 | F17: 1.58 | H17: 12 | I17: 0.095 | J17: 0.1 | K17: 0.107 | L17: 0.113 | M17: 0.119 | N17: 0.126 | O17: 0.133 | P17: 0.14 | Q17: 0.147 | R17: 0.154 | S17: 0.161 | T17: 0.169 | U17: 0.177 | V17: 0.184 | X17: Machine de labour vertical de 21 pieds | Y17: 215 | Z17: 19.6 | AA17: 2.106122449 | AB17: 41.28
B18: Tarières - (prise de force) | C18: 100 | D18: 20 | E18: 3.3 | F18: 1.58 | H18: 13 | I18: 0.088 | J18: 0.094 | K18: 0.1 | L18: 0.106 | M18: 0.113 | N18: 0.12 | O18: 0.127 | P18: 0.134 | Q18: 0.141 | R18: 0.148 | S18: 0.156 | T18: 0.163 | U18: 0.171 | V18: 0.179 | X18: Machine de labour vertical de 30 pieds | Y18: 305 | Z18: 27.2 | AA18: 2.152941176 | AB18: 58.56
B19: Aspirateur à grains | C19: 50 | D19: 15 | E19: 4.4 | F19: 2.1 | H19: 14 | I19: 0.083 | J19: 0.089 | K19: 0.095 | L19: 0.101 | M19: 0.108 | N19: 0.114 | O19: 0.121 | P19: 0.128 | Q19: 0.136 | R19: 0.143 | S19: 0.151 | T19: 0.159 | U19: 0.167 | V19: 0.175 | X19: Machine de labour vertical de 43 pieds | Y19: 420 | Z19: 39.2 | AA19: 2.057142857 | AB19: 80.64
B20: Récolteuses-hacheuses automotrices | C20: 400 | D20: 10 | E20: 6.7 | F20: 8.4 | H20: 15 | I20: 0.078 | J20: 0.084 | K20: 0.09 | L20: 0.096 | M20: 0.103 | N20: 0.11 | O20: 0.117 | P20: 0.124 | Q20: 0.131 | R20: 0.139 | S20: 0.147 | T20: 0.155 | U20: 0.163 | V20: 0.171 | X20: Machine de labour en bandes à 12 rangs | Y20: 330 | Z20: 17.5 | AA20: 3.620571429 | AB20: 63.36
B21: Récolteuses-hacheuses automotrices - Têtes | C21: 400 | D21: 10 | E21: 6.7 | F21: 8.4 | H21: 16 | I21: 0.074 | J21: 0.08 | K21: 0.086 | L21: 0.092 | M21: 0.099 | N21: 0.106 | O21: 0.113 | P21: 0.12 | Q21: 0.128 | R21: 0.136 | S21: 0.143 | T21: 0.151 | U21: 0.16 | V21: 0.168 | X21: Semoir en ligne à 6 rangs de 30 pouces | Y21: 110 | Z21: 7.6 | AA21: 2.778947368 | AB21: 21.12
B22: Faucheuse-conditionneuse automotrices | C22: 150 | D22: 15 | E22: 4.4 | F22: 3.36 | H22: 17 | I22: 0.07 | J22: 0.076 | K22: 0.082 | L22: 0.089 | M22: 0.095 | N22: 0.102 | O22: 0.11 | P22: 0.117 | Q22: 0.125 | R22: 0.132 | S22: 0.14 | T22: 0.149 | U22: 0.157 | V22: 0.165 | X22: Semoir en ligne à 12 rangs de 30 pouces | Y22: 160 | Z22: 15.3 | AA22: 2.007843137 | AB22: 30.72
B23: Faucheuse-conditionneuse (faucille) traîné | C23: 150 | D23: 15 | E23: 4.4 | F23: 2.1 | H23: 18 | I23: 0.067 | J23: 0.073 | K23: 0.079 | L23: 0.086 | M23: 0.092 | N23: 0.099 | O23: 0.107 | P23: 0.114 | Q23: 0.122 | R23: 0.13 | S23: 0.138 | T23: 0.146 | U23: 0.155 | V23: 0.163 | X23: Semoir en ligne à 16 rangs de 30 pouces | Y23: 175 | Z23: 20.4 | AA23: 1.647058824 | AB23: 33.6
B24: Faucheuse-conditionneuse (disque) traîné | C24: 150 | D24: 15 | E24: 4.4 | F24: 2.63 | H24: 19 | I24: 0.064 | J24: 0.07 | K24: 0.076 | L24: 0.083 | M24: 0.09 | N24: 0.097 | O24: 0.104 | P24: 0.112 | Q24: 0.12 | R24: 0.128 | S24: 0.136 | T24: 0.144 | U24: 0.153 | V24: 0.161 | X24: Semoir-distributeur à 6 rangs de 30 pouces | Y24: 85 | Z24: 6.4 | AA24: 2.55 | AB24: 16.32
B25: Râteau à foin (roue) | C25: 50 | D25: 20 | E25: 3.3 | F25: 2 | H25: 20 | I25: 0.061 | J25: 0.067 | K25: 0.074 | L25: 0.08 | M25: 0.087 | N25: 0.094 | O25: 0.102 | P25: 0.11 | Q25: 0.117 | R25: 0.126 | S25: 0.134 | T25: 0.142 | U25: 0.151 | V25: 0.16 | X25: Semoir-distributeur à 12 rangs de 30 pouces | Y25: 175 | Z25: 15.3 | AA25: 2.196078431 | AB25: 33.6
B26: Presses à balles rondes | C26: 100 | D26: 15 | E26: 4.4 | F26: 1.58 | X26: Semoir-distributeur à 16 rangs de 30 pouces | Y26: 255 | Z26: 20.4 | AA26: 2.4 | AB26: 48.96
B27: Presses à grosses balles carrées | C27: 150 | D27: 15 | E27: 4.4 | F27: 1.79 | X27: Semoir à céréales de 25 pieds | Y27: 160 | Z27: 11.7 | AA27: 2.625641026 | AB27: 30.72
B28: Presses à petites balles carrées | C28: 100 | D28: 20 | E28: 3.3 | F28: 1.05 | H28: Tracteur exemple, Tableau 3 et 4: | X28: Semoir à céréales de 35 pieds | Y28: 255 | Z28: 16.3 | AA28: 3.003680982 | AB28: 48.96
B29: Transporteur de balles rondes - traîné | C29: 100 | D29: 15 | E29: 4.4 | F29: 2.63 | I29: Tracteur à 4 roues motrices de 310 chevauxvapeur (CV) | X29: Semoir à roues plombeuses, 12 pieds | Y29: 85 | Z29: 5.1 | AA29: 3.2 | AB29: 16.32
B30: Transporteur de grosses balles carrées - traîné | C30: 200 | D30: 20 | E30: 3.3 | F30: 2.1 | H30: Prix d’achat | I30: 470 000$ | X30: Semoir à roues plombeuses, 20 pieds | Y30: 160 | Z30: 8.5 | AA30: 3.614117647 | AB30: 30.72
B31: Transporteur automoteur de petites balles carrées | C31: 150 | D31: 15 | E31: 4.4 | F31: 2.63 | H31: Utilisation prévue | I31: 450 h par an pendant 5 ans | X31: Semoir (semis direct), 15 pieds | Y31: 160 | Z31: 7 | AA31: 4.388571429 | AB31: 30.72
B32: Foreuse pneumatique (ouvreurs indépendants) | C32: 200 | D32: 15 | E32: 4.4 | F32: 3.68 | H32: Amortissement | I32: Amortissement total estimatif sur 5 ans | X32: Semoir (semis direct), 20 pieds | Y32: 200 | Z32: 9.3 | AA32: 4.129032258 | AB32: 38.4
B33: Foreuse pneumatique (houe) | C33: 200 | D33: 15 | E33: 4.4 | F33: 3.15 | I33: = taux d’amortissement annuel de 4,4 % (tableau 3,tracteurs à 4 roues motrices) x 5 ans x 470 000$ = 103 400$ amortissement total | X33: Pulvérisateur de 90 pieds, tracté | Y33: 110 | Z33: 49.6 | AA33: 0.4258064516 | AB33: 21.12
B34: Foreuse pneumatique (disque) | C34: 200 | D34: 15 | E34: 4.4 | F34: 3.15 | H34: Valeur de reprise | I34: = 470 000 $ (prix d’achat) – 103 400 $ (amortissement total) = 366 600 $ | X34: Pulvérisateur de 90 pieds, automoteur | Y34: 95 | Z34: 72.5 | AA34: 0.2515862069 | AB34: 16.3
B35: Semoir pneumatique | C35: 200 | D35: 15 | E35: 4.4 | F35: 3.15 | X35: Faucheuse-conditionneuse de 9 pieds | Y35: 45 | Z35: 4.4 | AA35: 1.963636364 | AB35: 8.64
B36: Semoir pour cultures en rangs | C36: 100 | D36: 10 | E36: 6.7 | F36: 4.2 | H36: Recouvrement du capital | X36: Faucheuse-conditionneuse rotative de 13 pieds | Y36: 85 | Z36: 9.7 | AA36: 1.682474227 | AB36: 16.32
B37: Charrues | C37: 100 | D37: 20 | E37: 3.3 | F37: 3.68 | I37: = (amortissement total x facteur de recouvrement du capital) + (valeur de reprise x taux d’intérêt) | X37: Presse à balles carrées | Y37: 45 | Z37: 4.4 | AA37: 1.963636364 | AB37: 8.64
B38: Disques | C38: 100 | D38: 20 | E38: 3.3 | F38: 1.58 | I38: = (103 400 $ x 0,218 (du tableau 4, 3 % d’intérêt sur 5 ans)) + (366 600 $ x 3 %) | X38: Presse à balles rondes de 1000 lb | Y38: 70 | Z38: 3 | AA38: 4.48 | AB38: 13.44
B39: Cultivateurs | C39: 200 | D39: 20 | E39: 3.3 | F39: 1.58 | I39: = 22 541 $ + 10 998 $ | X39: Presse à balles rondes de 1500 lb | Y39: 70 | Z39: 4 | AA39: 3.36 | AB39: 13.44
B40: Herses standards | C40: 75 | D40: 25 | E40: 2.7 | F40: 1.26 | I40: = recouvrement du capital de 33 539 $ par an (amortissement et frais d’intérêt). | X40: Presse à grosses balles carrées | Y40: 160 | Z40: 16.3 | AA40: 1.884662577 | AB40: 30.72
B41: Herses lourdes | C41: 100 | D41: 20 | E41: 3.3 | F41: 1.58 | X41: Presse à balles rondes de 1000 lb/enrubanneuse | Y41: 70 | Z41: 3 | AA41: 4.48 | AB41: 13.44
B42: Herses de tasseurs | C42: 200 | D42: 25 | E42: 2.7 | F42: 0.53 | X42: Récolteuse-hacheuse à 2 rangs | Y42: 160 | Z42: 1.4 | AA42: 21.94285714 | AB42: 30.72
B43: Machines de labour vertical | C43: 100 | D43: 20 | E43: 3.3 | F43: 3.68 | X43: Récolteuse-hacheuse automotrice à 6 rangs de 15 pieds | Y43: 625 | Z43: 5.1 | AA43: 20.6 | AB43: 105
B44: Rouleau | C44: 75 | D44: 20 | E44: 3.3 | F44: 1.05 | X44: Grosse souffleuse à fourrage | Y44: 70 | Z44: — | AA44: — | AB44: 13.44
B45: Décapeuses | C45: 80 | D45: 10 | E45: 6.7 | F45: 2.63 | X45: Moissonneuse-batteuse à maïs, 6 becs cueilleurs–30 po | Y45: 275 | Z45: 5.1 | AA45: 11.85882353 | AB45: 52.8
B46: Pulvérisateurs enjambeurs automoteurs | C46: 175 | D46: 8 | E46: 8.3 | F46: 3.68 | X46: Moissonneuse-batteuse à maïs, 12 becs cueilleurs–30 po | Y46: 375 | Z46: 10.2 | AA46: 8 | AB46: 72
B47: Enfonce-pieux | C47: 40 | D47: 20 | E47: 3.3 | F47: 2.1 | X47: Moissonneuse-batteuse à céréales, 25 pieds | Y47: 375 | Z47: 7.4 | AA47: 11.02702703 | AB47: 72
B48: Mélangeur d'aliments vertical | C48: 200 | D48: 15 | E48: 4.4 | F48: 2.63 | X48: Moissonneuse-batteuse à céréales, 35 pieds | Y48: 375 | Z48: 10.4 | AA48: 7.846153846 | AB48: 72
B49: Mélangeur-broyeur et mélangeur d'aliments | C49: 200 | D49: 15 | E49: 4.4 | F49: 3.15 | X49: 1. Multipliez le nombre de CV du moteur par 0,88 pour obtenir la prise de force (PTO) en CV.
B50: Broyeur de balles | C50: 200 | D50: 15 | E50: 4.4 | F50: 3.15 | X50: 2. Illinois Machinery Cost Estimates for 2023, Université de l’Illinois, Département de l’économie de l’agriculture et de la consommation, 2023.
B51: Épandeurs de fumier | C51: 100 | D51: 10 | E51: 6.7 | F51: 4.62 | X51: 3. Nebraska Tractor Test Laboratory. Tractor fuel consumption results, 2018–2024.
B52: Source : Farm Machinery Custom and Rental Rate Guide, ministère de l’Agriculture de la Saskatchewan, 2024-2025.
B57: EXEMPLE | C57: CALCUL DES COÛTS DE RÉPARATION ANNUELS
B58: Coût d’une moissonneuse-batteuse 375 HP neuve | C58: 820 000$ = 740 000$ (moissonneuse-batteuse) + 170 000$ ( tête à maïs)
B59: Pourcentages estimatifs à allouer pour les réparations* | C59: 2.63% moissonneuse-batteuse
C60: 2.94% tête à maïs
B62: Coûts de réparation annuels | C62: Moissonneuse-batteuse: 740 000$ x 2.63%soit une moyenne de 19 462$ par année
C63: Tête à maïs: 170 000$ x 2.94% soit une moyenne de 4 998$ par année
C65: Total des coûts de réparation annuels = 19 462$ + 4 998$ = 24 460$ par année
B66: Machine d’occasion | C66: Pour calculer l’amortissement d’une machine d’occasion, on soustrait
C67: du prix réellement payé pour acheter la machine la valeur prévue
C68: de reprise ou de récupération et on divise le résultat par la vie
C69: utile prévue dans l’exploitation. Le pourcentage à allouer pour les
C70: réparations doit être augmenté en fonction de l’âge de la machine
C71: ou du nombre d’heures qu’elle a déjà effectué. Il faut s’attendre
C72: à dépenser plus que la normale pendant l’année qui suit l’achat
C73: d’une machine d’occasion à cause des réparations supplémentaires
C74: nécessaires pour remettre celle-ci en parfait état de marche.
B76: fin de la feuille de calcul

Sheet Fiche technique
A1: Comment calculer les coûts des machines agricoles
A3: par John Molenhuis
A4: chargé de programme, analyse des activités commerciales et des coûts de production
A6: Ministère de l’Agriculture, de l’Alimentation et de l’Agroentreprise
A7: https://www.ontario.ca/fr/page/comment-calculer-les-couts-des-machines-agricoles
A13: fin de la feuille de calcul
